[Event "Commonwealth CC-Open 2024"]
[Site "Malacca"]
[Date "2024.02.21"]
[Round "2.12"]
[White "Rohith Krishna S"]
[Black "Tan, Yi Xun"]
[Result "1-0"]
[ECO "D45"]
[WhiteElo "2410"]
[BlackElo "1828"]
[Annotator "ChessBase"]
[PlyCount "75"]
[EventDate "2024.02.21"]
[EventCountry "MAS"]
[SourceTitle "playchess.com"]
[Source "ChessBase"]
[SourceQuality "1"]
[TimeControl "5400+30"]

1. d4 d5 2. c4 c6 3. Nc3 Nf6 4. Nf3 e6 5. e3 Nbd7 6. Qc2 Bd6 7. b3 O-O 8. Be2 b6 9. O-O Bb7 10. Bb2 Qe7 11. Rad1 Rad8 12. Rfe1 Rfe8 13. Bf1 c5 14. cxd5 exd5 15. dxc5 bxc5 16. Ne2 Ne4 17. Ng3 Nxg3 18. hxg3 Nf6 19. Bb5 Rf8 20. Nh4 Qe6 21. Qc3 a6 22. Bd3 Rfe8 23. Bf5 Qe7 24. Rc1 c4 25. Red1 Be5 26. Qxe5 Qxe5 27. Bxe5 Rxe5 28. bxc4 g5 29. f4 Rxe3 30. fxg5 Ne4 31. c5 Bc6 32. Bxe4 Rxe4 33. Nf5 d4 34. Rc4 Rd5 35. g4 Re2 36. Rdxd4 Rxg2+ 37. Kf1 Rxd4 {[%emt 1:43:35]} 38. Rxd4 {[%emt 1:23:04]} 1-0

[Event "Commonwealth CC-Open 2024"]
[Site "Malacca"]
[Date "2024.02.21"]
[Round "2.13"]
[White "Masli, Muhd Nur Daie"]
[Black "Wong, Zhenyong Jayden"]
[Result "1/2-1/2"]
[ECO "C70"]
[WhiteElo "1867"]
[BlackElo "2406"]
[Annotator "ChessBase"]
[PlyCount "69"]
[EventDate "2024.02.21"]
[EventCountry "MAS"]
[SourceTitle "playchess.com"]
[Source "ChessBase"]
[SourceQuality "1"]
[TimeControl "5400+30"]

1. e4 e5 2. Nf3 Nc6 3. Bb5 a6 4. Ba4 Nge7 5. Nc3 g6 6. O-O Bg7 7. Bb3 Na5 8. d4 Nxb3 9. axb3 exd4 10. Nxd4 O-O 11. Bf4 d6 12. Re1 Re8 13. Qd2 Bd7 14. Bg5 Qc8 15. Rad1 Nc6 16. Nxc6 Bxc6 17. Nd5 Bxd5 18. exd5 Bxb2 19. Rxe8+ Qxe8 20. Re1 Qd7 21. c3 Ba3 22. b4 a5 23. bxa5 Bc5 24. h4 h5 25. c4 Qg4 26. Bf6 Qf5 27. Bb2 f6 28. Re7 Rxa5 29. Qe2 Ra8 30. Re8+ Rxe8 31. Qxe8+ Kg7 32. Qe7+ Kg8 33. Qe8+ Kg7 34. Qe7+ Kg8 {[%emt 1:39:36]} 35. Qe8+ {[%emt 1:44:54]} 1/2-1/2

[Event "Commonwealth CC-Open 2024"]
[Site "Malacca"]
[Date "2024.02.21"]
[Round "2.16"]
[White "Kapoor, Satvik"]
[Black "Liu, Yi"]
[Result "1/2-1/2"]
[ECO "C18"]
[WhiteElo "1791"]
[BlackElo "2260"]
[Annotator "ChessBase"]
[PlyCount "69"]
[EventDate "2024.02.21"]
[EventCountry "MAS"]
[SourceTitle "playchess.com"]
[Source "ChessBase"]
[SourceQuality "1"]
[TimeControl "5400+30"]

1. e4 e6 2. d4 d5 3. Nc3 Bb4 4. e5 c5 5. a3 Bxc3+ 6. bxc3 Nc6 7. Qg4 g6 8. Nf3 Qa5 9. Bd2 Qa4 10. Ra2 b6 11. Bd3 Ba6 12. O-O Bxd3 13. cxd3 Nge7 14. Qf4 cxd4 15. Ng5 Nf5 16. g4 h6 17. Nxe6 fxe6 18. gxf5 gxf5 19. Raa1 Qc2 20. cxd4 Qxd3 21. Be3 Qe4 22. Qxe4 fxe4 23. f3 exf3 24. Rxf3 Ne7 25. Rf6 Nf5 26. Kf2 Rf8 27. Rxe6+ Kd7 28. Rf6 Rxf6 29. exf6 Rf8 30. Bf4 Rxf6 31. Be5 Rc6 32. Kf3 Rc4 33. Rg1 Ra4 34. Kf4 Ne7 {[%emt 1:00:13]} 35. Rg3 {[%emt 0:58:22]} 1/2-1/2

[Event "Commonwealth CC-Open 2024"]
[Site "Malacca"]
[Date "2024.02.21"]
[Round "2.19"]
[White "Soumya, Swaminathan"]
[Black "Rebecca Jesumarian"]
[Result "1-0"]
[ECO "B90"]
[WhiteElo "2259"]
[BlackElo "1805"]
[Annotator "ChessBase"]
[PlyCount "75"]
[EventDate "2024.02.21"]
[EventCountry "MAS"]
[SourceTitle "playchess.com"]
[Source "ChessBase"]
[SourceQuality "1"]
[TimeControl "5400+30"]

1. e4 c5 2. Nf3 d6 3. d4 cxd4 4. Nxd4 Nf6 5. Nc3 a6 6. Bd3 e5 7. Nde2 Be7 8. O-O O-O 9. Ng3 Nc6 10. Nd5 Nxd5 11. exd5 Nb4 12. Bf5 a5 13. c4 g6 14. Bxc8 Qxc8 15. Qe2 f5 16. f3 Bf6 17. Bd2 Nc2 18. Rac1 Qc5+ 19. Kh1 Nd4 20. Qe1 b6 21. Ne2 Rfe8 22. Nc3 a4 23. Qd1 a3 24. b4 Qc7 25. Be3 Qg7 26. Qd2 g5 27. Nb5 Nxb5 28. cxb5 g4 29. Rc6 f4 30. Bxb6 Be7 31. Bc7 Kh8 32. b6 e4 33. fxe4 Rg8 34. b7 Raf8 35. Qc2 f3 36. b8=Q g3 37. Qxf8 Bxf8 {[%emt 1:49:00]} 38. Qc3 {[%emt 1:09:46]} 1-0

[Event "Commonwealth CC-Open 2024"]
[Site "Malacca"]
[Date "2024.02.21"]
[Round "2.22"]
[White "Wee, Yin Lin"]
[Black "Vrashank Chouhan"]
[Result "0-1"]
[ECO "A09"]
[WhiteElo "1558"]
[BlackElo "2046"]
[Annotator "NA"]
[PlyCount "98"]
[EventDate "2024.02.21"]
[EventCountry "MAS"]
[SourceTitle "playchess.com"]
[Source "ChessBase"]
[SourceQuality "1"]
[TimeControl "5400+30"]

1. Nf3 d5 2. c4 d4 3. e3 c5 4. b4 Nf6 5. exd4 cxd4 6. Bb2 e5 7. Nxe5 Bxb4 8. Qa4+ Nfd7 9. Nd3 Be7 10. Bxd4 Bf6 11. Bxf6 Qxf6 12. Nc3 O-O 13. Be2 Nc6 14. O-O Nb6 15. Qd1 Nxc4 16. Nb4 Nxb4 17. Bxc4 Qd4 18. Qb3 Nc6 19. Rfe1 Bf5 20. Nd5 Be6 21. Ne3 Na5 22. Qd3 Qxd3 23. Bxd3 Rad8 24. Be4 Rxd2 25. a4 g6 26. Rab1 b6 27. Red1 Rfd8 28. Bd5 R2xd5 29. Nxd5 Rxd5 30. Rdc1 Kf8 31. Rc7 Rd7 32. Rbc1 Ke7 33. f4 Nb3 34. R1c3 Nc5 35. Rxd7+ Kxd7 36. a5 Kc6 37. axb6 axb6 38. Kf2 b5 39. Ke3 b4 40. Rc1 Kb5 41. Rb1 Bf5 42. Rd1 b3 43. Rd2 Na4 44. Rd5+ Kc6 45. Rd4 b2 46. Rb4 b1=Q 47. Rxb1 Bxb1 48. g4 Kd5 49. h4 {[%emt 1:37:15]} h5 {[%emt 1:41:48]} 0-1

[Event "Commonwealth CC-Open 2024"]
[Site "Malacca"]
[Date "2024.02.21"]
[Round "2.26"]
[White "Visakh N R"]
[Black "Kumaran, Ashwiniy"]
[Result "1-0"]
[ECO "D02"]
[WhiteElo "2549"]
[BlackElo "1530"]
[Annotator "ChessBase"]
[PlyCount "95"]
[EventDate "2024.02.21"]
[EventCountry "MAS"]
[SourceTitle "playchess.com"]
[Source "ChessBase"]
[SourceQuality "1"]
[TimeControl "5400+30"]

1. d4 Nf6 2. Nf3 g6 3. Nbd2 d5 4. e3 Bg7 5. b4 O-O 6. c4 c6 7. a4 Na6 8. Ba3 Nc7 9. Rc1 Re8 10. Be2 Ne4 11. O-O f6 12. b5 Nxd2 13. Qxd2 cxb5 14. axb5 Be6 15. Qb2 dxc4 16. Bxc4 Bxc4 17. Rxc4 Qd7 18. Rb1 Kh8 19. h3 Rec8 20. Qb3 Ne8 21. Rxc8 Rxc8 22. Ne1 Nd6 23. Qd5 Qf5 24. Qxf5 Nxf5 25. g4 Nd6 26. Bxd6 exd6 27. Ra1 a6 28. bxa6 bxa6 29. Rxa6 Bf8 30. Nd3 h5 31. Nf4 hxg4 32. Nxg6+ Kg7 33. Nxf8 Kxf8 34. hxg4 Ke7 35. Kg2 Ke6 36. Ra5 Rc2 37. Kf3 Rb2 38. e4 Rb4 39. Ke3 Rb3+ 40. Kf4 Rb7 41. d5+ Ke7 42. Ra6 Rc7 43. Kf5 Rb7 44. Ra1 Kf7 45. Rh1 Kg7 46. Ke6 Rb6 47. Rh5 Kg6 {[%emt 1:44:45]} 48. Rf5 {[%emt 1:10:12]} 1-0

[Event "Commonwealth CC-Open 2024"]
[Site "Malacca"]
[Date "2024.02.21"]
[Round "2.47"]
[White "Tham, Tick Hong Jax"]
[Black "Teo, Zhiguang"]
[Result "1-0"]
[ECO "C12"]
[WhiteElo "1589"]
[BlackElo "1207"]
[Annotator "NA"]
[PlyCount "49"]
[EventDate "2024.02.21"]
[EventCountry "MAS"]
[SourceTitle "playchess.com"]
[Source "ChessBase"]
[SourceQuality "1"]
[TimeControl "5400+30"]

1. e4 e6 2. d4 d5 3. Nc3 Nf6 4. Bg5 h6 5. Bxf6 Qxf6 6. exd5 Bb4 7. Bb5+ c6 8. dxc6 Nxc6 9. Nge2 O-O 10. O-O Rd8 11. Ne4 Qh4 12. Bd3 Ba5 13. c3 Bc7 14. g3 Qe7 15. f4 b6 16. Nf2 f6 17. Qa4 Bd7 18. Qb3 Na5 19. Qc2 Rac8 20. Rae1 Nc6 21. Qd1 e5 22. fxe5 fxe5 23. Nf4 Qg5 24. Qb3+ Kf8 {[%emt 1:01:23]} 25. Ng6+ {[%emt 0:39:59]} 1-0

[Event "Commonwealth CC-Open 2024"]
[Site "Malacca"]
[Date "2024.02.21"]
[Round "3.1"]
[White "Sethuraman, S.P."]
[Black "Lim, Zhuo Ren"]
[Result "1-0"]
[ECO "B96"]
[WhiteElo "2594"]
[BlackElo "2218"]
[Annotator "TA"]
[PlyCount "91"]
[EventDate "2024.02.21"]
[EventCountry "MAS"]
[SourceTitle "playchess.com"]
[Source "ChessBase"]
[SourceQuality "1"]
[TimeControl "5400+30"]

{[%evp 17,91,28,30,33,22,36,34,0,25,18,27,22,33,9,37,13,69,67,58,65,61,68,70,55,60,71,80,52,48,60,117,-42,148,155,114,141,136,-380,202,218,228,196,608,204,194,200,218,212,209,225,210,205,233,219,207,204,587,590,582,572,563,564,573,554,29972,29973,29973,29973,29974,29975,29975,29975,29976,29975,29975,29975]} 1. e4 {[%emt 0:00:34]} c5 {[%emt 0:00:10]} 2. Nf3 {[%emt 0:00:07]} d6 {[%emt 0:00:18]} 3. d4 {[%emt 0:00:09]} cxd4 {[%emt 0:00:08]} 4. Nxd4 {[%emt 0:00:04]} Nf6 {[%emt 0:00:14]} 5. Nc3 {[%emt 0:00:05]} a6 {[%emt 0:00:08]} 6. Bg5 {[%emt 0:00:44]} e6 {[%emt 0:01:33]} 7. f4 {[%emt 0:00:11]} Nbd7 {[%emt 0:00:41]} 8. Qe2 {[%emt 0:00:07]} Qc7 {[%emt 0:01:38]} 9. O-O-O {[%emt 0:00:13]} b5 {[%emt 0:01:06]} 10. a3 {[%emt 0:00:10]} Rb8 {[%emt 0:06:02]} 11. g4 {[%emt 0:01:25]} Be7 {[%emt 0:01:03]} 12. Bh4 {[%emt 0:03:51] White is slightly better.} h6 {[%emt 0:02:52]} (12... Nxe4 $5 13. Qxe4 (13. Nxe6 fxe6 14. Nxe4 Bxh4 $14) 13... Bxh4 $11) 13. Bg2 {[%emt 0:03:46][%cal Oe4e5]} b4 {[%emt 0:00:34]} 14. axb4 {[%emt 0:00:07]} Rxb4 {[%emt 0:00:08]} 15. Be1 {[%emt 0:00:31][%cal Oc3d5] Nd5! is the strong threat.} Qb6 {[%emt 0:01:01]} 16. Bf2 {[%emt 0:00:19][%cal Od4e6]} Rxb2 {[%emt 0:04:59] [#]} (16... Qc7 $11) 17. Ndb5 $1 $14 {[%emt 0:00:31]} Qa5 {[%emt 0:00:11]} 18. Kxb2 {[%emt 0:00:19][%cal Oe2c4]} Qb4+ {[%emt 0:00:08]} 19. Kc1 $1 {[%emt 0:00:18] Rd4 would now be deadly.} axb5 {[%emt 0:00:18]} 20. Kd2 $36 {[%emt 0:00:14][%cal Od1a1][%mdl 2048] White fights for an advantage. Active counter play!} O-O {[%emt 0:00:48]} 21. Ra1 {[%emt 0:10:46][%cal Oh1b1] Threatens to win with Rhb1!} Ne5 {[%emt 0:14:40]} 22. fxe5 {[%emt 0:16:22]} dxe5 {[%emt 0:00:11] White must now prevent ...Rd8+.} 23. Be1 $1 {[%emt 0:09:25][%cal Od2c1]} (23. Qxb5 $2 Rd8+ (23... Nxg4 $2 24. Qxb4 Bxb4 25. Bb6 $18) 24. Kc1 Qxc3 $19) 23... Rd8+ {[%emt 0:44:05]} (23... Qb2 $1 $14 24. Rb1 (24. Qxb5 $2 Qxa1 25. Qa4 Rd8+ 26. Ke2 Ba6+ 27. Kf3 Qxa4 $19) 24... Qa3 25. Qxb5 Nxg4) 24. Ke3 $2 {[%emt 0:00:25] [#]} (24. Kc1 $16 {[%cal Oc3d5] Strongly threatening Nd5!} Nh5 25. h4 (25. gxh5 $2 Bg5+ $19)) 24... Nd5+ $2 {[%emt 0:02:32]} 25. Nxd5 $16 {[%emt 0:01:46]} (25. exd5 $2 Qf4+ 26. Kd3 Qd4#) 25... Qd4+ {[%emt 0:00:09]} 26. Kf3 {[%emt 0:00:18]} exd5 {[%emt 0:00:07][%cal Be6d5,Bd5e4][%mdl 32]} 27. Ba5 $2 {[%emt 0:07:38][%mdl 8192] [#]} (27. c3 $16 {stays on course.} Qb6 28. Kg3) 27... f5 $4 {[%emt 0:09:33][%mdl 8192] [#]} 28. Rhd1 $1 $18 {[%emt 0:06:52]} (28. gxf5 dxe4+ 29. Kg3 e3 $11) 28... dxe4+ {[%emt 0:02:46]} 29. Kg3 {[%emt 0:00:10]} f4+ {[%emt 0:00:04]} 30. Kh3 {[%emt 0:00:03]} h5 {[%emt 0:00:24]} 31. Rxd4 {[%emt 0:01:47]} hxg4+ {[%emt 0:00:41]} 32. Qxg4 {[%emt 0:00:04]} Bxg4+ {[%emt 0:00:03]} 33. Kxg4 {[%emt 0:00:05][%cal Bh3g4,Bg4f5,Bf5e4,Be4f3,Bf3e2,Be2f1,Bf1e2,Be2e3][%mdl 32]} Rxd4 {[%emt 0:00:13]} 34. c3 {[%emt 0:00:50]} Rc4 {[%emt 0:01:32]} 35. Kf5 {[%emt 0:03:13][%csl LRe4,LRe5]} f3 {[%emt 0:06:26]} 36. Bf1 {[%emt 0:00:15]} Ra4 {[%emt 0:00:31]} (36... Rc8) 37. Rxa4 {[%emt 0:00:18]} bxa4 {[%emt 0:00:01]} 38. Kxe4 {[%emt 0:00:06]} f2 {[%emt 0:00:07] aiming for ...a3.} 39. Kf3 {[%emt 0:08:09]} (39. Kxe5 $2 a3 40. Bc4+ Kf8 $19) 39... Bc5 {[%emt 0:00:35]} 40. Bc4+ {[%emt 0:00:30]} Kf8 {[%emt 0:00:56]} 41. Bb4 {[%emt 0:01:18] White mates.} e4+ {[%emt 0:00:41] [#]} 42. Ke2 $1 {[%emt 0:00:04]} (42. Kxe4 Bxb4 43. Ke3 (43. cxb4 $2 {too greedy.} a3 $19) 43... Bc5+ (43... Bxc3 44. Kxf2 Bb2 45. Ke2 $17) 44. Kd2 a3 $19) 42... f1=Q+ {[%emt 0:00:41]} 43. Kxf1 {[%emt 0:00:15]} Bxb4 {[%emt 0:00:25]} 44. cxb4 {[%emt 0:00:05]} Ke7 {[%emt 0:00:02]} 45. Ke2 {[%emt 0:00:11]} Kd6 {[%emt 0:00:09]} 46. Ke3 {[%emt 0:28:50] Weighted Error Value: White=0.22 (precise) /Black=0.59.  Loses game:     	White=1     	---        Missed win:     	---       	Black=1      Mistake:       	White=1     	Black=4      Inaccurate:     	White=2     	Black=2      OK:         	White=14    	Black=14     Best:        	White=4     	Black=4      Strong:       	White=3     	---        Brilliant:      	White=1     	---} 1-0

[Event "Commonwealth CC-Open 2024"]
[Site "Malacca"]
[Date "2024.02.21"]
[Round "3.2"]
[White "Gomes, Mary Ann"]
[Black "Vaibhav, Suri"]
[Result "0-1"]
[ECO "A13"]
[WhiteElo "2332"]
[BlackElo "2596"]
[Annotator "TA"]
[PlyCount "78"]
[EventDate "2024.02.21"]
[EventCountry "MAS"]
[SourceTitle "playchess.com"]
[Source "ChessBase"]
[SourceQuality "1"]
[TimeControl "5400+30"]

{[%evp 12,78,4,0,0,-5,0,-6,6,-9,-10,-10,0,-7,-1,-14,-13,-8,-8,-24,-17,-43,-15,-28,-28,-39,-32,-59,-58,-65,-62,-65,-52,-57,-61,-65,-77,-79,-50,-79,-79,-92,-52,-62,-53,-119,-93,-112,-109,-285,-299,-299,-296,-264,-274,-285,-287,-298,-298,-298,-298,-356,-355,-391,-383,-359,-339,-345,-255]} 1. Nf3 {[%emt 0:00:18]} Nf6 {[%emt 0:00:19]} 2. c4 {[%emt 0:01:07]} e6 {[%emt 0:00:11]} 3. e3 {[%emt 0:00:24]} b6 {[%emt 0:00:21]} 4. Nc3 {[%emt 0:01:00]} Bb7 {[%emt 0:00:26]} 5. b3 {[%emt 0:00:35]} d5 {[%emt 0:02:42]} 6. Bb2 {[%emt 0:00:10] A13: English Opening: 1...e6.} a6 {[%emt 0:00:31]} 7. Qc2 {[%emt 0:00:18]} Bd6 {[%emt 0:00:17]} 8. cxd5 {[%emt 0:02:43]} exd5 {[%emt 0:00:05]} 9. d4 {[%emt 0:05:13]} Nbd7 {[%emt 0:11:31]} 10. Be2 {[%emt 0:01:28]} O-O {[%emt 0:00:40]} 11. O-O {[%emt 0:00:08]} Qe7 {[%emt 0:01:58]} 12. Rfe1 $146 {[%emt 0:02:16]} ({Predecessor:} 12. Rac1 Rac8 13. Bd3 Ne4 14. Qe2 Ra8 15. Bxe4 dxe4 16. Nd2 b5 17. a4 b4 18. Na2 {0-1 Gunina,V (2506)-Kovalenko,I (2644) Moscow-ch blitz 67th 2013 (11)}) 12... Rfe8 {[%emt 0:02:41]} 13. Bf1 {[%emt 0:02:16]} Ne4 {[%emt 0:15:59]} 14. g3 {[%emt 0:06:39]} f5 {[%emt 0:00:43]} 15. Bg2 {[%emt 0:00:18]} Rac8 {[%emt 0:02:32]} 16. Rad1 {[%emt 0:07:33]} Qf7 {[%emt 0:09:24]} 17. Nd2 {[%emt 0:03:38]} Re7 {[%emt 0:11:48]} 18. f3 {[%emt 0:01:02]} Nxc3 {[%emt 0:01:11]} 19. Bxc3 {[%emt 0:00:19]} Rce8 {[%emt 0:01:01]} 20. Qd3 {[%emt 0:01:28]} f4 {[%emt 0:04:06]} 21. gxf4 {[%emt 0:00:54]} Bxf4 {[%emt 0:00:05]} 22. Nf1 {[%emt 0:00:06]} Bd6 {[%emt 0:07:25]} 23. Ng3 {[%emt 0:03:40]} Re6 {[%emt 0:00:53]} 24. Nf5 {[%emt 0:01:58]} Bf8 {[%emt 0:00:04]} 25. e4 {[%emt 0:00:39]} c5 {[%emt 0:03:19]} 26. Kh1 {[%emt 0:06:30]} dxe4 {[%emt 0:04:03]} 27. fxe4 {[%emt 0:00:34]} cxd4 {[%emt 0:00:19]} 28. Qxd4 {[%emt 0:01:51]} (28. Bxd4 $15 Nc5 29. Bxc5 bxc5 (29... Bxc5 $2 30. Qc4 $19) 30. Rf1) 28... Nc5 {[%emt 0:02:26]} 29. b4 {[%emt 0:18:18]} Nxe4 {[%emt 0:00:55]} 30. Bxe4 $2 {[%emt 0:00:07]} (30. Rxe4 $17 {is the only way for White.} Qxf5 (30... Bxe4 31. Bxe4 Kh8 32. Re1 $14) (30... Rxe4 $2 31. Nh6+ Kh8 32. Nxf7+ $18) 31. Rf4 Bxg2+ 32. Kxg2 Rg6+ 33. Kh1) 30... Bxe4+ $19 {[%emt 0:00:29]} (30... Rxe4 31. Nh6+ (31. Qxb6 $2 Rxe1#) 31... Kh8 32. Nxf7+ Kg8 33. Nh6+ (33. Qxb6 $2 Rxe1#) 33... Kh8 34. Kg1 (34. Qxb6 $2 Rxe1#) (34. Rxe4 Rxe4 35. Kg1 Rxd4 36. Rxd4 Be7 37. Rg4 Bf8 38. Rf4 Bxb4 39. Bxb4 gxh6 40. Rg4 h5 41. Bc3#) 34... Rxd4 35. Rxe8 (35. Bxd4 Be4 $18) (35. Bxd4 Be4 $18)) 31. Rxe4 {[%emt 0:00:06] [#]} Qb7 $1 {[%emt 0:03:12]} ({And not} 31... Rxe4 32. Nh6+ (32. Qxb6 Qxf5 33. Rg1 Qf3+ 34. Rg2 Rd8 35. Qg1 Rd1) 32... Kh8 33. Nxf7+ Kg8 34. Qd5 (34. Qxb6 Kxf7 35. Rf1+ Kg8 $18) (34. Nh6+ Kh8 35. Qf2 Re2 36. Qf7 Rxh2+ 37. Kxh2 Re2+ 38. Kh1 Rh2+ 39. Kxh2 Bd6+ 40. Rxd6 b5 41. Bxg7#) 34... h6 35. Nxh6+ (35. Ne5+ Kh8 36. Qxe4 Kg8 37. Qg6 Re7 38. Rd8 b5 39. Qf5 Rf7 40. Nxf7 h5) 35... Kh7 36. Rg1) (31... Qxf5 32. Rf4 Qg5 33. Rxf8+ Rxf8 34. Rg1 $15) 32. Ng3 {[%emt 0:15:40]} Rxe4 {[%emt 0:00:11]} 33. Nxe4 {[%emt 0:00:04]} Rxe4 {[%emt 0:00:53]} ({Much less strong is} 33... Qxe4+ 34. Qxe4 Rxe4 35. Rd8 $19) 34. Qd5+ {[%emt 0:00:05]} Qxd5 {[%emt 0:00:03]} 35. Rxd5 {[%emt 0:00:08]} Bxb4 {[%emt 0:01:34]} 36. Bd4 {[%emt 0:01:10]} b5 {[%emt 0:03:10]} 37. Rd7 {[%emt 0:00:09]} Bf8 {[%emt 0:00:13]} 38. a3 {[%emt 0:00:07]} Re1+ {[%emt 0:03:03]} 39. Kg2 {[%emt 0:00:07]} Rd1 {[%emt 0:02:44]} ({Not} 39... Bxa3 40. Rxg7+ Kf8 41. Rxh7 $17) 0-1

[Event "Commonwealth CC-Open 2024"]
[Site "Malacca"]
[Date "2024.02.21"]
[Round "3.3"]
[White "Gong, Qianyun"]
[Black "Mitrabha, Guha"]
[Result "*"]
[ECO "C02"]
[WhiteElo "2263"]
[BlackElo "2504"]
[Annotator "RC"]
[PlyCount "75"]
[EventDate "2024.02.21"]
[EventCountry "MAS"]
[SourceTitle "playchess.com"]
[Source "ChessBase"]
[SourceQuality "1"]
[TimeControl "5400+30"]

1. e4 {[%emt 1:31:00]} e6 {[%emt 0:08:36]} 2. d4 {[%emt 0:00:00]} d5 {[%emt 0:00:07]} 3. e5 {[%emt 0:00:00]} c5 {[%emt 1:23:17]} 4. c3 {[%emt 0:01:30]} Nc6 {[%emt 0:00:00]} 5. Nf3 {[%emt 0:00:00]} Qb6 {[%emt 0:00:00]} 6. Bd3 {[%emt 0:00:00]} Bd7 {[%emt 0:00:00]} 7. dxc5 {[%emt 0:00:00]} Bxc5 {[%emt 0:00:00]} 8. O-O {[%emt 0:00:00]} Qc7 {[%emt 0:00:00]} 9. Bf4 {[%emt 0:00:00]} Nge7 {[%emt 0:00:00]} 10. b4 {[%emt 0:03:00]} Bb6 {[%emt 0:03:30]} 11. a4 {[%emt 0:00:00]} a6 {[%emt 0:00:30]} 12. Bg3 {[%emt 0:00:00]} d4 {[%emt 0:00:30]} 13. Nbd2 {[%emt 0:01:30]} Nd5 {[%emt 0:00:00]} 14. a5 {[%emt 0:00:00]} Ba7 {[%emt 0:00:00]} 15. c4 {[%emt 0:00:00]} Ndxb4 {[%emt 0:00:00]} 16. Ne4 {[%emt 0:01:30]} Nxd3 {[%emt 0:00:00]} 17. Nd6+ {[%emt 0:00:00]} Kf8 {[%emt 0:00:00]} 18. Qxd3 {[%emt 0:00:00]} Bc5 {[%emt 0:00:00]} 19. Qe4 {[%emt 0:00:00]} h6 {[%emt 0:00:00]} 20. Qf4 {[%emt 0:00:00]} Be8 {[%emt 0:00:00]} 21. Rfd1 {[%emt 0:00:00]} Nxa5 {[%emt 0:00:00]} 22. Rab1 {[%emt 0:00:00]} Kg8 {[%emt 0:00:00]} 23. Nxd4 {[%emt 0:00:00]} b6 {[%emt 0:00:00]} 24. Ne2 {[%emt 0:00:00]} Rd8 {[%emt 0:00:00]} 25. Nc3 {[%emt 0:00:00]} f5 {[%emt 0:00:00]} 26. Bh4 {[%emt 0:00:00]} Rb8 {[%emt 0:00:00]} 27. Rd3 {[%emt 0:00:02]} Rh7 {[%emt 0:00:00]} 28. Rg3 {[%emt 0:02:21]} Bxd6 {[%emt 0:00:00]} 29. exd6 {[%emt 0:00:35]} Qxc4 {[%emt 0:00:00]} 30. Qd2 {[%emt 0:01:40]} Qxh4 {[%emt 0:00:00]} 31. d7 {[%emt 0:00:04]} Bf7 {[%emt 0:00:00]} 32. Rxb6 {[%emt 0:01:08]} Rd8 {[%emt 0:00:00]} 33. Rxa6 {[%emt 0:00:25]} Nc4 {[%emt 0:00:00]} 34. Qd1 {[%emt 0:00:30]} Rh8 {[%emt 0:00:00]} 35. Ra4 {[%emt 0:00:39]} e5 {[%emt 0:00:00]} 36. h3 {[%emt 0:01:17]} Kh7 {[%emt 0:00:00]} 37. Qc2 {[%emt 0:00:39]} e4 {[%emt 0:00:00]} 38. Ne2 {[%emt 0:00:29]} *

[Event "Commonwealth CC-Open 2024"]
[Site "Malacca"]
[Date "2024.02.21"]
[Round "3.4"]
[White "Vignesh N R"]
[Black "Soumya, Swaminathan"]
[Result "1/2-1/2"]
[ECO "A48"]
[WhiteElo "2517"]
[BlackElo "2259"]
[Annotator "TA"]
[PlyCount "53"]
[EventDate "2024.02.21"]
[EventCountry "MAS"]
[SourceTitle "playchess.com"]
[Source "ChessBase"]
[SourceQuality "1"]
[TimeControl "5400+30"]

{[%evp 26,53,9,14,13,0,23,0,0,0,5,0,15,7,5,0,0,0,0,0,-3,-14,-7,-14,-6,-8,-14,-9,0,0]} 1. d4 {[%emt 0:00:39]} Nf6 {[%emt 0:01:04]} 2. Nf3 {[%emt 0:00:39]} g6 {[%emt 0:00:05]} 3. Nbd2 {[%emt 0:00:23]} c5 {[%emt 0:06:57]} 4. dxc5 {[%emt 0:00:26]} Qa5 {[%emt 0:01:53]} 5. a3 {[%emt 0:00:09]} Qxc5 {[%emt 0:00:28]} 6. b4 {[%emt 0:00:04]} Qc7 {[%emt 0:01:50]} 7. Bb2 {[%emt 0:00:06]} Bg7 {[%emt 0:00:04]} 8. e3 {[%emt 0:00:15]} O-O {[%emt 0:01:07]} 9. c4 {[%emt 0:00:09]} b6 {[%emt 0:05:03]} 10. Be2 {[%emt 0:00:10]} Bb7 {[%emt 0:00:59]} 11. O-O {[%emt 0:00:10]} d6 {[%emt 0:07:10]} 12. Qb3 {[%emt 0:01:21]} Nbd7 {[%emt 0:01:33]} 13. Rac1 {[%emt 0:00:09]} Rac8 {[%emt 0:01:34]} 14. Rfd1 {[%emt 0:00:10]} Qb8 {[%emt 0:01:02]} 15. Nd4 {[%emt 0:00:58]} Qa8 {[%emt 0:04:59]} 16. Bf1 {[%emt 0:00:06]} a6 {[%emt 0:02:38] The position is equal.} 17. Qa2 {[%emt 0:00:19]} Rc7 {[%emt 0:17:34]} 18. N4b3 {[%emt 0:00:32]} Rfc8 {[%emt 0:00:43]} 19. a4 {[%emt 0:00:11][%cal Ba3a4,Ba4a5][%mdl 32]} d5 {[%emt 0:02:23]} 20. a5 {[%emt 0:12:42] Black must now prevent axb6.} dxc4 {[%emt 0:04:15]} 21. Nxc4 {[%emt 0:00:48]} b5 {[%emt 0:03:08]} 22. Ne5 {[%emt 0:13:17]} Rxc1 {[%emt 0:09:13]} 23. Rxc1 {[%emt 0:00:37]} Rxc1 {[%emt 0:02:24]} 24. Nxc1 {[%emt 0:00:06]} Bd5 {[%emt 0:00:35]} 25. Qa1 {[%emt 0:01:58] [#] Nxd7 is the strong threat.} Nxe5 {[%emt 0:05:35]} 26. Bxe5 {[%emt 0:00:03]} Qc6 {[%emt 0:04:35]} 27. Nd3 {[%emt 0:11:48] Not much happened in this game.   Weighted Error Value: White=0.05 (flawless) /Black=0.02 (flawless) .  OK:         	White=3     	Black=9      Best:        	---       	Black=1} 1/2-1/2